bitfinex-derivatives/quotes_BTCF0:USTF0_20250810
["timestamp","ask_amount","ask_price","bid_price","bid_amount"]
[1754790124865,2.3958759,116740.0,116730.0,0.1722812]
[1754790125066,1.87254186,116740.0,116730.0,0.1722812]
[1754790125363,2.3958759,116740.0,116730.0,0.1722812]
[1754790126159,1.87254186,116740.0,116730.0,0.1722812]
[1754790126360,2.3958759,116740.0,116730.0,0.1722812]
[1754790126867,1.87254186,116740.0,116730.0,0.1722812]
[1754790127066,2.3958759,116740.0,116730.0,0.1722812]
[1754790127566,1.87254186,116740.0,116730.0,0.1722812]
[1754790127769,2.3958759,116740.0,116730.0,0.1722812]
[1754790128678,1.87254186,116740.0,116730.0,0.1722812]
[1754790128867,2.3958759,116740.0,116730.0,0.1722812]
[1754790129870,1.87254186,116740.0,116730.0,0.1722812]
[1754790130073,2.3958759,116740.0,116730.0,0.1722812]
[1754790130267,1.87254186,116740.0,116730.0,0.1722812]
[1754790130467,2.45757853,116740.0,116730.0,0.1722812]
[1754790130664,2.3958759,116740.0,116730.0,0.15218692]
[1754790131861,1.05690186,116740.0,116730.0,0.15218692]
[1754790132166,1.21915262,116740.0,116730.0,0.41385394]
[1754790132470,1.01912131,116740.0,116730.0,0.41385394]
[1754790132671,1.28078833,116740.0,116730.0,0.41385394]
[1754790133271,1.54245535,116740.0,116730.0,0.41385394]
[1754790133573,1.54245535,116740.0,116730.0,0.15218692]
[1754790134066,1.01912131,116740.0,116730.0,0.15218692]
[1754790134267,1.54245535,116740.0,116730.0,0.15218692]
[1754790134770,1.48081964,116740.0,116730.0,0.15218692]
[1754790135572,0.9574856,116740.0,116730.0,0.15218692]
[1754790135760,1.48081964,116740.0,116730.0,0.15218692]
[1754790136274,0.9574856,116740.0,116730.0,0.15218692]
[1754790136668,1.48081964,116740.0,116730.0,0.15218692]
[1754790136869,0.9574856,116740.0,116730.0,0.15218692]
[1754790137071,1.48081964,116740.0,116730.0,0.15218692]
[1754790137472,0.9574856,116740.0,116730.0,0.15218692]
[1754790137976,1.48081964,116740.0,116730.0,0.15218692]
[1754790139677,0.9574856,116740.0,116730.0,0.41385394]
[1754790139880,1.21915262,116740.0,116730.0,0.41385394]
[1754790140070,1.48081964,116740.0,116730.0,0.41385394]
[1754790141280,1.48081964,116740.0,116730.0,0.15218692]
[1754790141584,1.21915262,116740.0,116730.0,0.15218692]
[1754790141883,0.9574856,116740.0,116730.0,0.15218692]
[1754790142177,1.48081964,116740.0,116730.0,0.15218692]
[1754790142478,0.9574856,116740.0,116730.0,0.15218692]
[1754790142983,1.48081964,116740.0,116730.0,0.15218692]
[1754790145782,0.9574856,116740.0,116730.0,0.15218692]
[1754790145977,1.21915262,116740.0,116730.0,0.15218692]
[1754790146686,0.9574856,116740.0,116730.0,0.15218692]
[1754790147080,1.48081964,116740.0,116730.0,0.15218692]
[1754790148383,1.21915262,116740.0,116730.0,0.15218692]
[1754790148886,0.9574856,116740.0,116730.0,0.15218692]
[1754790149086,1.48081964,116740.0,116730.0,0.15218692]
[1754790150377,1.21915262,116740.0,116730.0,0.15218692]
[1754790150786,0.9574856,116740.0,116730.0,0.15218692]
[1754790151088,1.21915262,116740.0,116730.0,0.15218692]
[1754790154384,1.48081964,116740.0,116730.0,0.15218692]
[1754790161999,0.9574856,116740.0,116730.0,0.15218692]
[1754790162198,1.48081964,116740.0,116730.0,0.15218692]
[1754790165102,1.01914235,116740.0,116730.0,0.15218692]
[1754790165297,1.54247639,116740.0,116730.0,0.15218692]
[1754790166404,1.01914235,116740.0,116730.0,0.15218692]
[1754790166612,1.54247639,116740.0,116730.0,0.15218692]
[1754790168406,0.82087639,116740.0,116730.0,0.15218692]
[1754790168608,1.54247639,116740.0,116730.0,0.15218692]
[1754790170309,1.52125809,116740.0,116730.0,0.15218692]
[1754790170499,1.54248563,116740.0,116730.0,0.15218692]
[1754790172814,1.01915159,116740.0,116730.0,0.15218692]
[1754790173004,1.54248563,116740.0,116730.0,0.15218692]
[1754790174502,1.01915159,116740.0,116730.0,0.15218692]
[1754790174707,1.48082888,116740.0,116730.0,0.0866542]
[1754790175109,0.95749484,116740.0,116730.0,0.0866542]
[1754790175310,1.48082888,116740.0,116730.0,0.0866542]
[1754790181216,0.75922888,116740.0,116730.0,0.0866542]
[1754790181419,1.48082888,116740.0,116730.0,0.0866542]
[1754790183122,1.57834391,116740.0,116730.0,0.0866542]
[1754790186916,1.57834391,116740.0,116730.0,0.0856542]
[1754790186917,1.83530271,116740.0,116730.0,0.0856542]
[1754790190223,1.31196867,116740.0,116730.0,0.0856542]
[1754790190426,1.83530271,116740.0,116730.0,0.0856542]
[1754790203323,0.1777236,116730.0,116720.0,0.27470581]
[1754790203530,1.66447816,116730.0,116720.0,0.27460581]
[1754790204429,1.66647816,116730.0,116720.0,0.27560581]
[1754790208430,1.30567816,116730.0,116720.0,0.27560581]
[1754790208633,2.02727816,116730.0,116720.0,0.27560581]
[1754790209130,2.02727816,116730.0,116720.0,0.30951581]
[1754790209331,2.02727816,116730.0,116720.0,0.57118283]
[1754790210934,1.76561114,116730.0,116720.0,0.58747283]
[1754790211126,2.02727816,116730.0,116720.0,0.60966283]
[1754790212035,2.02727816,116730.0,116720.0,0.34799581]
[1754790212533,2.02727816,116730.0,116720.0,0.60966283]
[1754790212736,2.02727816,116730.0,116720.0,0.34799581]
[1754790213034,2.02727816,116730.0,116720.0,0.60966283]
[1754790215531,1.66647816,116730.0,116720.0,0.60966283]
[1754790215932,1.66647816,116730.0,116720.0,0.34799581]
[1754790215933,1.72813491,116730.0,116720.0,0.34799581]
[1754790216233,1.72813491,116730.0,116720.0,0.60966283]
[1754790217136,1.72813491,116730.0,116720.0,0.3303751]
[1754790217337,1.72813491,116730.0,116720.0,0.59204212]
[1754790218337,1.66647816,116730.0,116720.0,0.59204212]
[1754790218739,1.66647816,116730.0,116720.0,0.3303751]
[1754790219132,1.66647816,116730.0,116720.0,0.59204212]
[1754790219742,1.66647816,116730.0,116720.0,0.3303751]
[1754790220045,1.66647816,116730.0,116720.0,0.59204212]
[1754790221241,1.66647816,116730.0,116720.0,0.2579851]
[1754790222141,1.72813491,116730.0,116720.0,0.2579851]
[1754790222841,1.72813491,116730.0,116720.0,0.1723234]
[1754790223941,1.66647816,116730.0,116720.0,0.1723234]
[1754790224342,1.92814518,116730.0,116720.0,0.1723234]
[1754790224545,1.66647816,116730.0,116720.0,0.1723234]
[1754790225436,1.92814518,116730.0,116720.0,0.1723234]
[1754790225638,1.40481114,116730.0,116720.0,0.1723234]
[1754790225841,1.66647816,116730.0,116720.0,0.1723234]
[1754790226146,1.40481114,116730.0,116720.0,0.1723234]
[1754790226338,1.66647816,116730.0,116720.0,0.1723234]
[1754790227546,1.40481114,116730.0,116720.0,0.1723234]
[1754790227745,1.66647816,116730.0,116720.0,0.1723234]
[1754790228346,1.40481114,116730.0,116720.0,0.1723234]
[1754790228645,1.66647816,116730.0,116720.0,0.1723234]
[1754790228947,1.40481114,116730.0,116720.0,0.1723234]
[1754790229146,1.66647816,116730.0,116720.0,0.1723234]
[1754790230450,2.02727816,116730.0,116720.0,0.1723234]
[1754790233259,1.76561114,116730.0,116720.0,0.1723234]
[1754790233460,2.02727816,116730.0,116720.0,0.1723234]
[1754790234857,1.76561114,116730.0,116720.0,0.1723234]
[1754790235053,2.02727816,116730.0,116720.0,0.1723234]
[1754790235560,1.21891816,116730.0,116720.0,0.1723234]
[1754790235757,2.02723816,116730.0,116720.0,0.1723234]
[1754790237864,1.76557114,116730.0,116720.0,0.1723234]
[1754790238058,2.02723816,116730.0,116720.0,0.1723234]
[1754790240361,0.95725114,116730.0,116720.0,0.1723234]
[1754790240559,2.02723816,116730.0,116720.0,0.43399042]
[1754790241063,2.02723816,116730.0,116720.0,0.1723234]
[1754790241561,1.76557114,116730.0,116720.0,0.1723234]
[1754790242069,2.02723816,116730.0,116720.0,0.1723234]
[1754790244167,1.76557114,116730.0,116720.0,0.1723234]
[1754790244368,2.02723816,116730.0,116720.0,0.1723234]
[1754790248475,2.02723816,116730.0,116720.0,0.2070734]
[1754790248867,2.02723816,116730.0,116720.0,0.46874042]
[1754790251078,2.02719805,116730.0,116720.0,0.46874042]
[1754790251475,1.21887805,116730.0,116720.0,0.43399042]
[1754790251676,1.76549103,116730.0,116720.0,0.52838042]
[1754790251982,2.02715805,116730.0,116720.0,0.52838042]
[1754790252476,2.02715805,116730.0,116720.0,0.50520042]
[1754790252880,2.02715805,116730.0,116720.0,0.2435334]
[1754790253180,2.02715805,116730.0,116720.0,0.50520042]
[1754790255168,0.95721103,116730.0,116720.0,0.73211744]
[1754790255368,2.0887748,116730.0,116720.0,0.69565744]
[1754790255572,2.0887748,116730.0,116720.0,0.1723234]
[1754790255777,2.0887748,116730.0,116720.0,0.43399042]
[1754790257380,2.0887748,116730.0,116720.0,0.46874042]
[1754790257679,2.0887748,116730.0,116720.0,0.43399042]
[1754790258876,1.82710778,116730.0,116720.0,0.43399042]
[1754790259074,2.0887748,116730.0,116720.0,0.43399042]
[1754790259781,2.0887748,116730.0,116720.0,0.1723234]
[1754790259974,2.0887748,116730.0,116720.0,0.43399042]
[1754790260382,1.82710778,116730.0,116720.0,0.43399042]
[1754790260579,2.0887748,116730.0,116720.0,0.43399042]
[1754790261587,1.82710778,116730.0,116720.0,0.43399042]
[1754790261786,2.0887748,116730.0,116720.0,0.43399042]
[1754790262486,2.0887748,116730.0,116720.0,0.1723234]
[1754790262681,2.0887748,116730.0,116720.0,0.43399042]
[1754790263489,2.0887748,116730.0,116720.0,0.1723234]
[1754790263677,2.0887748,116730.0,116720.0,0.43399042]
[1754790264493,2.0887748,116730.0,116720.0,0.1723234]
[1754790264790,2.02711805,116730.0,116720.0,0.43399042]
[1754790266890,1.76545103,116730.0,116720.0,0.43399042]
[1754790267094,2.02711805,116730.0,116720.0,0.43399042]
[1754790267587,2.02711805,116730.0,116720.0,0.46874042]
[1754790271594,1.76545103,116730.0,116720.0,0.46874042]
[1754790271795,2.02711805,116730.0,116720.0,0.46874042]
[1754790271991,1.76545103,116730.0,116720.0,0.46874042]
[1754790272192,2.02711805,116730.0,116720.0,0.46874042]
[1754790274403,2.02711805,116730.0,116720.0,0.2070734]
[1754790274592,2.02711805,116730.0,116720.0,0.46874042]
[1754790275900,2.02711805,116730.0,116720.0,0.50520042]
[1754790276308,1.76545103,116730.0,116720.0,0.50520042]
[1754790276604,2.02711805,116730.0,116720.0,0.50520042]
[1754790277003,1.76537103,116730.0,116720.0,0.1723234]
[1754790277404,2.02703805,116730.0,116720.0,0.43399042]
[1754790279809,2.02703805,116730.0,116720.0,0.1723234]
[1754790282012,0.95721103,116730.0,116720.0,0.1723234]
[1754790282313,0.95721103,116730.0,116720.0,0.76736744]
[1754790282615,1.21887805,116730.0,116720.0,0.79073744]
[1754790282810,1.21887805,116730.0,116720.0,0.2674034]
[1754790283000,1.21887805,116730.0,116720.0,0.2440334]
[1754790283205,1.21887805,116730.0,116720.0,0.76736744]
[1754790285714,1.21887805,116730.0,116720.0,0.50570042]
[1754790286117,0.95721103,116730.0,116720.0,0.50570042]
[1754790286321,1.21887805,116730.0,116720.0,0.50570042]
[1754790289115,1.21987805,116730.0,116720.0,0.50570042]
[1754790290009,1.21787805,116730.0,116720.0,0.50470042]
[1754790290209,1.22187805,116730.0,116720.0,0.50570042]
[1754790292012,0.96021103,116730.0,116720.0,0.50570042]
[1754790292311,1.22187805,116730.0,116720.0,0.50570042]
[1754790293918,1.22188727,116730.0,116720.0,0.50570042]
[1754790296016,1.22188727,116730.0,116720.0,0.2440334]
[1754790296224,1.22188727,116730.0,116720.0,0.50570042]
[1754790298428,0.96022025,116730.0,116720.0,0.50570042]
[1754790298724,1.22188727,116730.0,116720.0,0.50570042]
[1754790302025,1.22188727,116730.0,116720.0,0.2440334]
[1754790302328,0.96022025,116730.0,116720.0,0.50570042]
[1754790302721,1.22188727,116730.0,116720.0,0.50570042]
[1754790303527,0.96022025,116730.0,116720.0,0.2440334]
[1754790303726,1.22188727,116730.0,116720.0,0.50570042]
[1754790304728,1.021877,116730.0,116720.0,0.50570042]
[1754790304926,1.28354402,116730.0,116720.0,0.2440334]
[1754790305330,1.28354402,116730.0,116720.0,0.50570042]
[1754790306528,1.021877,116730.0,116720.0,0.50570042]
[1754790306830,1.28354402,116730.0,116720.0,0.50570042]
[1754790307423,1.28354402,116730.0,116720.0,0.2440334]
[1754790307622,1.28354402,116730.0,116720.0,0.46819042]
[1754790309423,1.28354402,116730.0,116720.0,0.1723234]
[1754790309630,1.28354402,116730.0,116720.0,0.43399042]
[1754790310326,1.28354402,116730.0,116720.0,0.1723234]
[1754790313031,1.021877,116730.0,116720.0,0.1723234]
[1754790313230,1.28354402,116730.0,116720.0,0.1723234]
[1754790313430,1.28354402,116730.0,116720.0,0.0866617]
[1754790314125,1.54521104,116730.0,116720.0,0.0866599]
[1754790314833,1.48355429,116730.0,116720.0,0.0866599]
[1754790315029,0.96022025,116730.0,116720.0,0.0866599]
[1754790315234,1.48355429,116730.0,116720.0,0.0866599]
[1754790316026,1.48355429,116730.0,116720.0,0.001]
[1754790316633,1.57828113,116730.0,116720.0,0.001]
[1754790319331,0.1663199,116720.0,116710.0,0.0857673]
[1754790319535,1.92340059,116720.0,116710.0,0.0856673]
[1754790320634,1.93199539,116720.0,116710.0,0.0856673]
[1754790321036,1.93299539,116720.0,116710.0,0.0866673]
[1754790323531,1.93299539,116720.0,116710.0,0.001]
[1754790323932,1.93299539,116720.0,116710.0,0.0866672]
[1754790325041,2.02566084,116720.0,116710.0,0.001]
[1754790325338,2.02566084,116720.0,116710.0,0.0866673]
[1754790327342,2.02566084,116720.0,116710.0,0.001]
[1754790327939,1.5023268,116720.0,116710.0,0.0866669]
[1754790328238,2.02566084,116720.0,116710.0,0.0866669]
[1754790331844,2.02566084,116720.0,116710.0,0.001]
[1754790334944,2.02566084,116720.0,116710.0,0.0866668]
[1754790335747,2.38646084,116720.0,116710.0,0.0866668]
[1754790338050,1.66486084,116720.0,116710.0,0.0866668]
[1754790338245,2.38646084,116720.0,116710.0,0.0866668]
[1754790350155,2.44811759,116720.0,116710.0,0.0866668]
[1754790350454,2.38646084,116720.0,116710.0,0.0866668]
[1754790353453,2.38646084,116720.0,116710.0,0.001]
[1754790360857,2.38746084,116720.0,116710.0,0.001]
[1754790361063,0.2051468,116710.0,116700.0,0.0001]
[1754790361254,0.2051541,116700.0,116690.0,0.69303093]
[1754790361559,1.11048479,116700.0,116690.0,0.25990271]
[1754790362864,0.58715075,116700.0,116690.0,0.25990271]
[1754790363057,0.58715075,116700.0,116690.0,0.32949543]
[1754790363258,1.11048479,116700.0,116690.0,0.32949543]
[1754790363459,1.11148479,116700.0,116690.0,0.33149543]
[1754790364567,0.58815075,116700.0,116690.0,0.33149543]
[1754790364754,1.11148479,116700.0,116690.0,0.33149543]
[1754790366259,0.58815075,116700.0,116690.0,0.33149543]
[1754790366468,1.11148479,116700.0,116690.0,0.33149543]
[1754790368665,1.92008479,116700.0,116690.0,0.24315172]
[1754790368870,1.92008479,116700.0,116690.0,0.173559]
[1754790373569,1.39675075,116700.0,116690.0,0.173559]
[1754790373766,1.92008479,116700.0,116690.0,0.173559]
[1754790375078,1.55928479,116700.0,116690.0,0.173559]
[1754790375376,1.92008479,116700.0,116690.0,0.173559]
[1754790376075,1.11148479,116700.0,116690.0,0.173559]
[1754790376277,0.58815075,116700.0,116690.0,0.173559]
[1754790376575,0.84981777,116700.0,116690.0,0.52969602]
[1754790376770,0.84981777,116700.0,116690.0,0.268029]
[1754790377078,0.84981777,116700.0,116690.0,0.52969602]
[1754790378471,0.84981777,116700.0,116690.0,0.268029]
[1754790378873,0.84981777,116700.0,116690.0,0.52969602]
[1754790380284,0.58815075,116700.0,116690.0,0.52969602]
[1754790380486,0.84981777,116700.0,116690.0,0.52969602]
[1754790380687,0.84981777,116700.0,116690.0,0.268029]
[1754790380887,0.84981777,116700.0,116690.0,0.52969602]
[1754790383993,0.84981777,116700.0,116690.0,0.268029]
[1754790384291,0.84981777,116700.0,116690.0,0.52969602]
[1754790385987,0.84981777,116700.0,116690.0,0.268029]
[1754790386193,0.84981777,116700.0,116690.0,0.52969602]
[1754790387593,0.84981777,116700.0,116690.0,0.268029]
[1754790387793,0.84981777,116700.0,116690.0,0.52969602]
[1754790388187,0.82862112,116700.0,116690.0,0.52969602]
[1754790388393,0.84979964,116700.0,116690.0,0.52969602]
[1754790389094,0.84979964,116700.0,116690.0,0.268029]
[1754790389293,0.84979964,116700.0,116690.0,0.52969602]
[1754790389782,0.58813262,116700.0,116690.0,0.52969602]
[1754790390096,0.84979964,116700.0,116690.0,0.52969602]
[1754790391390,0.84979964,116700.0,116690.0,0.268029]
[1754790391796,1.11146666,116700.0,116690.0,0.50632602]
[1754790392989,0.48899964,116700.0,116690.0,0.50632602]
[1754790393193,0.84979964,116700.0,116690.0,0.50632602]
[1754790394695,0.84979964,116700.0,116690.0,0.52969602]
[1754790395398,0.84979964,116700.0,116690.0,0.50632602]
[1754790395597,0.84979964,116700.0,116690.0,0.244659]
[1754790395791,0.84979964,116700.0,116690.0,0.50632602]
[1754790396598,0.58813262,116700.0,116690.0,0.50632602]
[1754790396798,0.84979964,116700.0,116690.0,0.244659]
[1754790397099,0.84979964,116700.0,116690.0,0.50632602]
[1754790397397,0.48899964,116700.0,116690.0,0.50632602]
[1754790397589,0.84979964,116700.0,116690.0,0.50632602]
[1754790398900,0.84979964,116700.0,116690.0,0.244659]
[1754790399103,0.84979964,116700.0,116690.0,0.50632602]
[1754790401303,0.84979964,116700.0,116690.0,0.244659]
[1754790401604,0.84979964,116700.0,116690.0,0.50632602]
[1754790403806,0.84979964,116700.0,116690.0,0.244659]
[1754790404007,0.84979964,116700.0,116690.0,0.50632602]
[1754790405399,0.58813262,116700.0,116690.0,0.244659]
[1754790405599,0.84979964,116700.0,116690.0,0.50632602]
[1754790406210,0.84979964,116700.0,116690.0,0.244659]
[1754790406411,0.84979964,116700.0,116690.0,0.50632602]
[1754790406710,1.11146666,116700.0,116690.0,0.50632602]
[1754790407002,1.11146666,116700.0,116690.0,0.244659]
[1754790407209,1.11146666,116700.0,116690.0,0.50632602]
[1754790411812,1.11146666,116700.0,116690.0,0.244659]
[1754790412115,1.11146666,116700.0,116690.0,0.50632602]
[1754790413418,1.11146666,116700.0,116690.0,0.244659]
[1754790413615,1.11146666,116700.0,116690.0,0.50632602]
[1754790414419,1.11146666,116700.0,116690.0,0.244659]
[1754790414616,1.11146666,116700.0,116690.0,0.50632602]
[1754790414810,1.11146666,116700.0,116690.0,0.244659]
[1754790416914,0.58813262,116700.0,116690.0,0.244659]
[1754790417116,1.11146666,116700.0,116690.0,0.244659]
[1754790417911,1.11146666,116700.0,116690.0,0.223609]
[1754790418106,1.11146666,116700.0,116690.0,0.173559]
[1754790420320,0.58813262,116700.0,116690.0,0.43522602]
[1754790420521,0.58813262,116700.0,116690.0,0.173559]
[1754790420522,1.11146666,116700.0,116690.0,0.173559]
[1754790422718,1.11146666,116700.0,116690.0,0.0878798]
[1754790422925,0.58813262,116700.0,116690.0,0.0878798]
[1754790423113,1.11146666,116700.0,116690.0,0.0878798]
[1754790425521,1.11146666,116700.0,116690.0,0.0022]
[1754790425821,1.37313368,116700.0,116690.0,0.0022]
[1754790426325,1.11146666,116700.0,116690.0,0.0022]
[1754790426524,0.0856797,116690.0,116680.0,0.24157134]
[1754790426727,1.10827226,116690.0,116680.0,0.24147134]
[1754790426930,0.84660524,116690.0,116680.0,0.24147134]
[1754790427114,0.58493822,116690.0,116680.0,0.24147134]
[1754790427521,1.10827226,116690.0,116680.0,0.24147134]
[1754790427719,0.84660524,116690.0,116680.0,0.24147134]
[1754790427923,0.58493822,116690.0,116680.0,0.24147134]
[1754790428226,0.84609978,116690.0,116680.0,0.24147134]
[1754790428527,0.84609978,116690.0,116680.0,0.24247134]
[1754790428918,0.58443276,116690.0,116680.0,0.24247134]
[1754790429119,0.84709978,116690.0,116680.0,0.24347134]
[1754790432029,0.58543276,116690.0,116680.0,0.24347134]
[1754790432226,0.84709978,116690.0,116680.0,0.24347134]
[1754790432427,0.58543276,116690.0,116680.0,0.24347134]
[1754790432630,0.84709978,116690.0,116680.0,0.50513836]
[1754790433022,0.84709978,116690.0,116680.0,0.53848836]
[1754790433622,0.84709978,116690.0,116680.0,0.27682134]
[1754790434628,0.84709978,116690.0,116680.0,0.53848836]
[1754790434832,0.84709978,116690.0,116680.0,0.57602836]
[1754790435024,0.58543276,116690.0,116680.0,0.59939836]
[1754790435224,0.84709978,116690.0,116680.0,0.59939836]
[1754790435424,0.84709978,116690.0,116680.0,0.33773134]
[1754790435624,0.84709978,116690.0,116680.0,0.59939836]
[1754790437031,0.84709978,116690.0,116680.0,0.57602836]
[1754790437330,0.58543276,116690.0,116680.0,0.31436134]
[1754790437537,0.84709978,116690.0,116680.0,0.31436134]
[1754790438230,0.84709978,116690.0,116680.0,0.57602836]
[1754790439532,0.58543276,116690.0,116680.0,0.57602836]
[1754790439731,0.84709978,116690.0,116680.0,0.57602836]
[1754790442029,0.84709978,116690.0,116680.0,0.31436134]
[1754790442238,0.84709978,116690.0,116680.0,0.57602836]
[1754790443531,0.58543276,116690.0,116680.0,0.57602836]
[1754790443734,0.84709978,116690.0,116680.0,0.57602836]
[1754790444535,0.84709978,116690.0,116680.0,0.31436134]
[1754790444836,0.84709978,116690.0,116680.0,0.57602836]
[1754790445038,0.84709978,116690.0,116680.0,0.31436134]
[1754790445333,0.84709978,116690.0,116680.0,0.57622836]
[1754790445533,0.84709978,116690.0,116680.0,0.31456134]
[1754790445737,0.84709978,116690.0,116680.0,0.57622836]
[1754790446638,0.84709978,116690.0,116680.0,0.24367134]
[1754790447240,0.58543276,116690.0,116680.0,0.24367134]
[1754790447436,0.84709978,116690.0,116680.0,0.24367134]
[1754790447636,0.84709978,116690.0,116680.0,0.27702134]
[1754790448140,0.84709978,116690.0,116680.0,0.53868836]
[1754790448737,0.84709978,116690.0,116680.0,0.55464836]
[1754790448939,0.84709978,116690.0,116680.0,0.57622836]
[1754790449340,0.84709978,116690.0,116680.0,0.31456134]
[1754790449638,0.84709978,116690.0,116680.0,0.57622836]
[1754790450740,0.58543276,116690.0,116680.0,0.57622836]
[1754790450941,0.84709978,116690.0,116680.0,0.57622836]
[1754790452043,0.84709978,116690.0,116680.0,0.2444624]
[1754790452232,0.84709978,116690.0,116680.0,0.50612942]
[1754790452629,0.84709978,116690.0,116680.0,0.2444624]
[1754790452829,0.84709978,116690.0,116680.0,0.50612942]
[1754790453742,1.66253978,116690.0,116680.0,0.50612942]
[1754790455436,1.30173978,116690.0,116680.0,0.2444624]
[1754790455642,1.66253978,116690.0,116680.0,0.50612942]
[1754790456536,1.40087276,116690.0,116680.0,0.2444624]
[1754790456736,1.66253978,116690.0,116680.0,0.50612942]
[1754790456937,1.66253978,116690.0,116680.0,0.48454942]
[1754790457148,1.66253978,116690.0,116680.0,0.43523942]
[1754790458648,1.66253978,116690.0,116680.0,0.1735724]
[1754790458946,1.40087276,116690.0,116680.0,0.43523942]
[1754790459245,1.66253978,116690.0,116680.0,0.43523942]
[1754790459448,1.66253978,116690.0,116680.0,0.1735724]
[1754790459638,1.66253978,116690.0,116680.0,0.43523942]
[1754790461248,1.66253978,116690.0,116680.0,0.50798942]
[1754790461554,0.84709978,116690.0,116680.0,0.50798942]
[1754790464952,0.84709978,116690.0,116680.0,0.2463224]
[1754790465250,0.84709978,116690.0,116680.0,0.50798942]
[1754790466053,0.58543276,116690.0,116680.0,0.50798942]
[1754790466259,0.84709978,116690.0,116680.0,0.50798942]
[1754790466653,0.58543276,116690.0,116680.0,0.50798942]
[1754790466853,0.84709978,116690.0,116680.0,0.50798942]
[1754790467354,0.58543276,116690.0,116680.0,0.50798942]
[1754790467560,0.58543276,116690.0,116680.0,0.79302644]
[1754790467856,0.84709978,116690.0,116680.0,0.2463224]
[1754790468050,0.58543276,116690.0,116680.0,0.76965644]
[1754790468240,0.84709978,116690.0,116680.0,0.76965644]
[1754790468954,0.84709978,116690.0,116680.0,0.50798942]
[1754790470054,0.84709978,116690.0,116680.0,0.2463224]
[1754790470354,0.84709978,116690.0,116680.0,0.50798942]
[1754790471459,0.84709978,116690.0,116680.0,0.2463224]
[1754790471953,0.84709978,116690.0,116680.0,0.50798942]
[1754790472147,0.58543276,116690.0,116680.0,0.2463224]
[1754790472342,0.84709978,116690.0,116680.0,0.2463224]
[1754790472547,0.84709978,116690.0,116680.0,0.50798942]
[1754790474751,0.84709978,116690.0,116680.0,0.2463224]
[1754790475052,0.84709978,116690.0,116680.0,0.43523942]
[1754790475254,0.84709978,116690.0,116680.0,0.1735724]
[1754790475656,0.84709978,116690.0,116680.0,0.46973942]
[1754790476156,0.84709978,116690.0,116680.0,0.2080724]
[1754790476353,0.84709978,116690.0,116680.0,0.46973942]
[1754790477156,1.66089978,116690.0,116680.0,0.46973942]
[1754790477958,0.84709978,116690.0,116680.0,0.46973942]
[1754790478160,1.66057978,116690.0,116680.0,0.46973942]
[1754790479158,1.63990672,116690.0,116680.0,0.46973942]
[1754790479458,1.66013881,116690.0,116680.0,0.50798942]
[1754790479960,0.84665881,116690.0,116680.0,0.50798942]
[1754790481162,0.84665881,116690.0,116680.0,0.2463224]
[1754790481466,0.84665881,116690.0,116680.0,0.50798942]
[1754790482364,0.58499179,116690.0,116680.0,0.50798942]
[1754790482863,0.84665881,116690.0,116680.0,0.50798942]
[1754790483061,0.84665881,116690.0,116680.0,0.2463224]
[1754790483262,0.84665881,116690.0,116680.0,0.50798942]
[1754790484057,0.84665881,116690.0,116680.0,0.2463224]
[1754790484258,0.84665881,116690.0,116680.0,0.50798942]
[1754790485059,0.58499179,116690.0,116680.0,0.50798942]
[1754790485264,0.84665881,116690.0,116680.0,0.50798942]
[1754790486966,0.58499179,116690.0,116680.0,0.50798942]
[1754790487268,0.84665881,116690.0,116680.0,0.50798942]
[1754790487767,0.84665881,116690.0,116680.0,0.2463224]
[1754790488067,0.84665881,116690.0,116680.0,0.50798942]
[1754790489463,0.84665881,116690.0,116680.0,0.2463224]
[1754790489765,0.84665881,116690.0,116680.0,0.50798942]
[1754790491161,0.84665881,116690.0,116680.0,0.2463224]
[1754790491465,0.84665881,116690.0,116680.0,0.50798942]
[1754790491665,0.58499179,116690.0,116680.0,0.50798942]
[1754790491867,0.84665881,116690.0,116680.0,0.50798942]
[1754790492666,0.84665881,116690.0,116680.0,0.53135942]
[1754790493862,0.58499179,116690.0,116680.0,0.53135942]
[1754790494267,0.84900881,116690.0,116680.0,0.53135942]
[1754790495569,0.84900881,116690.0,116680.0,0.79302644]
[1754790496366,0.84900881,116690.0,116680.0,0.2696924]
[1754790496566,0.84900881,116690.0,116680.0,0.53135942]
[1754790498264,0.58734179,116690.0,116680.0,0.53135942]
[1754790498468,0.84900881,116690.0,116680.0,0.53135942]
[1754790500071,0.84900881,116690.0,116680.0,0.2696924]
[1754790500270,0.84900881,116690.0,116680.0,0.53135942]
[1754790500862,0.48820881,116690.0,116680.0,0.53135942]
[1754790501263,0.84900881,116690.0,116680.0,0.53135942]
[1754790501676,0.58734179,116690.0,116680.0,0.53135942]
[1754790501970,0.84900881,116690.0,116680.0,0.53135942]
[1754790502864,0.58734179,116690.0,116680.0,0.53135942]
[1754790503060,0.84900881,116690.0,116680.0,0.53135942]
[1754790503264,0.58734179,116690.0,116680.0,0.53135942]
[1754790503464,0.84900881,116690.0,116680.0,0.53135942]
[1754790504473,0.58734179,116690.0,116680.0,0.53135942]
[1754790504770,0.84900881,116690.0,116680.0,0.53135942]
[1754790505275,0.58734179,116690.0,116680.0,0.53135942]
[1754790505468,0.84900881,116690.0,116680.0,0.53135942]
[1754790507366,0.58734179,116690.0,116680.0,0.53135942]
[1754790507573,0.84900881,116690.0,116680.0,0.53135942]
[1754790508773,0.84900881,116690.0,116680.0,0.79302644]
[1754790509972,0.84900881,116690.0,116680.0,0.2696924]
[1754790510375,0.84900881,116690.0,116680.0,0.79302644]
[1754790512576,0.48820881,116690.0,116680.0,0.79302644]
[1754790513479,0.84900881,116690.0,116680.0,0.79302644]
[1754790515679,0.58734179,116690.0,116680.0,0.79302644]
[1754790515878,0.84900881,116690.0,116680.0,0.79302644]
[1754790517079,0.84900742,116690.0,116680.0,0.79302644]
[1754790520578,0.5873404,116690.0,116680.0,0.79302644]
[1754790520778,0.84900742,116690.0,116680.0,0.79302644]
[1754790525579,0.5873404,116690.0,116680.0,0.79302644]
[1754790525879,0.84900742,116690.0,116680.0,0.79302644]
[1754790526883,0.84900742,116690.0,116680.0,0.2696924]
[1754790527074,0.84900742,116690.0,116680.0,0.53135942]
[1754790527581,0.84900742,116690.0,116680.0,0.79302644]
[1754790530180,0.84900742,116690.0,116680.0,0.53135942]
[1754790530480,0.84900742,116690.0,116680.0,0.2463224]
[1754790530680,0.5873404,116690.0,116680.0,0.50798942]
[1754790530869,0.84900742,116690.0,116680.0,0.50798942]
[1754790531582,0.84900742,116690.0,116680.0,0.43523942]
[1754790531882,0.84900742,116690.0,116680.0,1.24415942]
[1754790532079,0.84900742,116690.0,116680.0,0.9824924]
[1754790532376,0.5873404,116690.0,116680.0,0.9824924]
[1754790532683,0.84900742,116690.0,116680.0,0.43523942]
[1754790532986,0.5873404,116690.0,116680.0,0.43523942]
[1754790533373,0.84900742,116690.0,116680.0,0.43523942]
[1754790533578,0.5873404,116690.0,116680.0,0.43523942]
[1754790533786,0.84900742,116690.0,116680.0,0.43523942]
[1754790533983,0.84900742,116690.0,116680.0,0.1735724]
[1754790534183,0.5873404,116690.0,116680.0,0.43523942]
[1754790534388,0.84900742,116690.0,116680.0,0.43523942]